{"text_format":"1","workbook":"xlsx","n_sheets":2,"sheets":["Улицы","Лист3"],"not_rendered":{"charts":0,"images":0,"macros":1,"external_links":0,"defined_names":0,"comments":0,"pivot_tables":0},"unopened":[],"bounds":{"document_bytes":16777216,"sheet_cells":100000,"rows_first":2000,"rows_last":500,"rows_between":2000,"halvings":0,"cell_chars":16384,"cell_head_chars":4096},"cells_cut":0,"cells_raw":0,"read":"whole","date_system":"1900"}

{"sheet":"Улицы","index":0,"n_rows":283,"n_cols":2,"rows_kept":283,"cut":false,"hidden":false,"merged":[]}
["9-го Мая"]
["Авдеенко","Генерала"]
["Автозаводская"]
["Автопарковая"]
["Автотранспортная"]
["Агитаторская"]
["Агрегатная"]
["Азербайджанская"]
["Азовская"]
["Айвазовского","переулок"]
["Аистова"]
["пр.Академика","проспект"]
["пер.Александра","переулок"]
["Александровская"]
["Алексеевская"]
["Алексухина","Василия"]
["Алишера Навои"]
["Алма-Атинская"]
["Алябьева"]
["Амосова","Николая"]
["Амурская"]
["Андреевская"]
["Андрющенко","Григория"]
["Анищенко"]
["Антонова","Авиаконструктора"]
["Антонова-Овсеенко"]
["Арефьева","Константина"]
["Армейская"]
["Армянская"]
["Армянский","переулок"]
["ул.Арсенальная"]
["пл.Арсенальная","площадь"]
["Арсенальный","переулок"]
["Артезианский","переулок"]
["Артема"]
["Артёма"]
["Артиллерийский","переулок"]
["Архитекторская"]
["Аскольдов","переулок"]
["Астраханская"]
["Астраханский","переулок"]
["Астрономическая"]
["Ахматовой","Анны"]
["Ахтырский","переулок"]
["Аэродромная"]
["Бабушкина"]
["Багговутовская"]
["Бажана","Николая"]
["Бажова"]
["Байкальская"]
["Байковая"]
["Бакинская"]
["Бакинских Комиссаров"]
["Бакунина"]
["Балакирева"]
["Балаклеевская"]
["Балтийский"]
["Банковая"]
["Барбюса","Анри"]
["Баренбойма"]
["Баррикадная"]
["Бассейная"]
["Бастионная"]
["Бастионный"]
["Батумская"]
["Баумана"]
["Бахмацкая"]
["Белгородская"]
["Белецкого","Академика"]
["Белинского","Чеслава"]
["Белицкая"]
["Беличанская"]
["Белокур","Екатерины"]
["Беломорская"]
["Белорусская"]
["Бердичевская"]
["Бердянская"]
["Бердянский"]
["Бережанская"]
["Березняковская"]
["Беретти","Викентия"]
["Берковецкая"]
["Берлинского","Максима"]
["Бессарабская","площадь"]
["Бестужева","Александра"]
["Бестужева","Александра"]
["Бетховена"]
["Бехтеревский"]
["Бирюзова","Маршала"]
["Блакитного"]
["Блока","Александра"]
["Блюхера","Василия"]
["Бобринецкая"]
["Бобруйский"]
["Богатырская"]
["Богдановская"]
["Богомольца","Академика"]
["Богунская"]
["Богунский"]
["Богуславский спуск"]
["Боевая"]
["Боженко"]
["Бойко","Ивана"]
["Бойченко","Александра"]
["Большая Житомирская"]
["Большая Китаевская"]
["Большая Окружная"]
["Бондарская"]
["Бондарский"]
["Бонч-Бруевича"]
["Бонч-Бруевича","переулок"]
["Бориславская"]
["Борисоглебская"]
["ул.Бориспольская"]
["Бориспольское шоссе"]
["Боричев спуск"]
["Боричев Ток"]
["Боровая"]
["Боровиковского"]
["Боровиченко","Марии"]
["Боровой"]
["Бородянский"]
["Бортницкая"]
["Бортницкий"]
["Борщаговская"]
["Боткина"]
["Братиславская"]
["Братская"]
["Брест-Литовский"]
["Брестская"]
["Броварской"]
["Бродовская"]
["Бродовский"]
["Брусиловская"]
["Брюллова"]
["Брюсова"]
["Брянская"]
["Бубнова","Андрея"]
["Бугорная"]
["Бугорный"]
["Бударина"]
["Будищанская"]
["Буйко","Профессора"]
["Букиной","Раисы"]
["Букиной","Раисы"]
["Буковинская"]
["Булаховского","Академика"]
["Булгакова"]
["Вигуровский бульвар"]
["Бурденко"]
["Бурмистенко"]
["Бурмистенко"]
["Бусловская"]
["Бутлерова","Академика"]
["Бучанская"]
["Бучмы","Амвросия"]
["Быкова","Леонида"]
["Быковнянский"]
["Быковский"]
["Бышевский"]
["Вавиловых"]
["Вакуленчука"]
["Вакуленчука"]
["Валковская"]
["Василевской","Ванды"]
["Василенко","Николая"]
["Васильевская"]
["ул.Васильковская"]
["Васильковский"]
["Васильченко","Степана"]
["Ватутина"]
["Ватутина","Генерала"]
["Введенская"]
["Вербицкого","Архитектора"]
["Вербная"]
["Вербовая"]
["Верболозная"]
["Верболозный"]
["Вересневая"]
["Верещагина"]
["Вернадского","Академика"]
["Верхнегорская"]
["Верхний Вал"]
["Верхняя"]
["Верховинная"]
["Верховинца","Василия"]
["Верховного","бульвар"]
["Верховной Рады"]
["Вершигоры","Петра"]
["Весенняя"]
["Ветрова","Бориса"]
["Ветряные Горы"]
["Вешенский"]
["Вильде","Эдуарда"]
["Вильямса","Академика"]
["Винницкая"]
["Виноградный"]
["Вискозная"]
["Витавская"]
["Витрука","Генерала"]
["Витянская"]
["Вишни","Остапа"]
["Вишняковская"]
["Владимиро-Лыбедская"]
["Владимирская"]
["Владимирский спуск"]
["Внешняя"]
["Вовчка","Марка"]
["Вовчка","Марко"]
["Водников"]
["Водогонная"]
["Военная"]
["Военный проезд"]
["Воздвиженская"]
["Воздухофлотская"]
["Воздухофлотский","проспект"]
["Вознесенский спуск"]
["_------Вокзальная"]
["Волгоградская"]
["Волго-Донская"]
["Волго-Донский"]
["Волжская"]
["Волжский"]
["Волкова","Космонавта"]
["Волосская"]
["Волошская"]
["Волховская"]
["Волховский"]
["Волынская"]
["Воровского"]
["Воскресенская"]
["Воссоединения"]
["Вузовская"]
["Выборгская"]
["Выборгский"]
["Выгуровский"]
["Выдубицкая"]
["Высоцкого","Владимира"]
["Вышгородская"]
["Гаврилюка","Александра"]
["Гавро","Лайоша"]
["Гагарина","Юрия"]
["Гаевая"]
["Газовая"]
["Газопроводная"]
["Гайдай","Зои"]
["Гайдара"]
["Гайсинская"]
["Гайцана","Николая"]
["Галана","Ярослава"]
["Галицкая"]
["Гамарника"]
["Гарина","Бориса"]
["Гарматная"]
["Гаршина"]
["Гастелло","Николая"]
["Гатная"]
["Гашека","Ярослава"]
["Гвардейская"]
["Георгиевский"]
["Геофизиков"]
["Геофизиков"]
["Герасименко","Константина"]
["Героев Войны"]
["Героев Днепра"]
["Героев Космоса"]
["Героев Обороны"]
["Героев Севастополя"]
["Героев Сталинграда"]
["Герцена"]
["Гетьмана","Вадима"]
["Глазунова"]
["Глебова"]
["Глинки"]
["Глубочицкая"]
["Глуховская"]
["Глушкова","Академика"]
["Гмыри","Бориса"]
["Говорова","Маршала"]
["Говорова","Маршала"]
["Гоголевская"]
["Гоголя"]
["Головко","Андрея"]

{"sheet":"Лист3","index":1,"n_rows":49,"n_cols":15,"rows_kept":49,"cut":false,"hidden":false,"merged":[]}
[]
["РЕГУЛЯРКА (удалить два знака слева и справа от \"/\" и сам знак /)","\n\nFunction tt(text As String)\n    With CreateObject(\"VBScript.Regexp\")\n        .Pattern = \"\\d\\d/\\d\\d\"\n        tt = .Replace(text, \"\")\n    End With\nEnd Function\n",null,null,null,null,null,null,null,null,null,"Продам свою 1-ую квартиру возле м. Академгородок","Продаю свою однокомнатную квартиру недалеко от метро Академгородок по улице Олевской 7 (дому 5 лет), 43/18/10, фото отвечает действительности. До метро 7 минут. В квартире остается вся мебель и бытовая техника. Без комиссионных. \n36000$. Звоните, договоримся.                                    ",{"$f":"MID(L2,((FIND(K2,L2,1))+LEN(K2)),9)","v":"Продам св"},{"$f":"MID(M2,((FIND(K2,M2,1))+LEN(K2)),9)","v":"Продаю св"}]
["формула",{"$f":"MID(L2,((FIND(K2,L2,1))+LEN(K2)),9)","v":"Продам св"},null,null,null,null,null,null,null,null,null,"1 комнатная","Продам срочно квартиру на Позняках с видом на Днепр. Метро 5 мин. на маршрутке. Развязка на левобережку (20 мин.) и Позняки (5 - 8 мин.). Рядом больница детская, школы, садики, супермаркеты.  \nВсе документы в порядке. Не агенство! \nРиелторам не беспокоить                                    ",{"$f":"MID(L3,((FIND(K3,L3,1))+LEN(K3)),9)","v":"1 комнатн"},{"$f":"MID(M3,((FIND(K3,M3,1))+LEN(K3)),9)","v":"Продам ср"}]
[null,null,null,null,null,null,null,null,null,null,null,"Квартира в центре","на любителя .историческая мебель парковка во дворе окна во двор-тихо                                    ","Квартира ","на любите"]
["Макрос цикла - НОМЕР_ДОМА",null,null,null,null,null,null,null,null,null,null,"3-К возле озера на Урловской 36-а. Вся мебель и техника! ХОЗЯИН!","3-К с панорамным видом на озеро, новый дизайнерский ремонт с использованием дорогих материалов, мебель, техника. \nОтличная планировка: 3 большие светлые комнаты по 18 кв.м., кухня 12 кв.м., утепленный балкон с барной стойкой 6 кв.м., 2 санузла, гардеробная 2 кв.м. \nБронедверь c замком MultLock. Натяжные потолки везде. Интернет WI-FI, ТВ - 180 каналов. \nКухня - встроенная кухня с 3D фасадами (фурнитура Blum), испанская плитка (теплый пол Nexans), немецкие обои, техника Gorenje (варочная поверхность, духовка, микроволновка, чайник), встроенная стиральная машина Bosch, холодильник LG Side-by-side, телевизор LG, посудомоечная машина Zanussi, дизайнерские стулья и стол. \nВанна - замена всех труб, испанский кафель, зеркальная мозаика, сантехника Grohe и Kraus, теплый пол Nexans, бесшумная вытяжка Solar&Palau. \nТуалет - замена труб, испанский кафель, теплый пол Nexans сантехника Grohe и Villeroy&Boch, бойлер, бесшумная вытяжка Solar&Palau. \nКомната (спальня): немецкие ламинат и обои, белый спальный гарнитур, 2 шкафа купе, кондиционер LG Artcool, телевизор с 3D Smart Tv Samsung 40 дюймов, натяжной потолок с фотопечатью. \nКомната (гостиная): немецкие ламинат и дизайнерские обои, итальянский диван, телевизор с 3D Smart Tv Samsung 46 дюймов, подвесной мебельный гарнитур, кондиционер LG Artcool, авторское освещение, натяжной потолок. \nКомната (детская): немецкий ламинат, бумажные обои, дизайнерский потолок, 2 кресла-мешка. \nВся мебель и техника остаются покупателю. \nОчень развитая инфраструктура. Все необходимое рядом. \nБыстрое освобождение. 1 владелец. Налоги платим. \nЦена 155 000 дол.                                    ","3-К возле","3-К с пан"]
[null,null,null,null,null,null,null,null,null,null,"Щербакова","Срочно! Продажа, своя 2 ком. кв., ул. Щербакова 65","Срочная продажа 2-к. квартиры по ул.Щербакова 63, Интернациональная пл. Удобная транспортная развязка ( две ветки метро - Нивки, Сырец). Комнаты раздельные, с/у раздельный, большая кладовая. Металопластиковые окна. В подьезде консьерж. Квартира чистая, светлая, очень теплая. Рядом магазины, школы, садики, поликлиника, парк Дубки                                    "," 65"," 63, Инте"]
[null,null,null,null,null,null,null,null,null,null,"Запорожца","Сдается 2-х конатная квартира, Долгосрочно!","Сдается 2-х конатная, отдельная квартира в кирпичном доме. Жилая.  \n2-й этаж \nДолгосрочно! \nул. Петра Запорожца в Днепровском районе. Удобная развязка! \nДля 2-х человек!!! \nКомнаты смежные. Меблированные! Есть всё необходимое! \nВанна и туалет раздельные - есть кафель \nБытовая техника:  \nХолодильник, Стиральная машина, Телевизор, Пылесос \nВладелец. тел.:  994                                      ",{"$error":"#VALUE!"}," в Днепро"]
[null,null,null,null,null,null,null,null,null,null,"Урловская","Яркая эксклюзивная 3-к квартира с авторским ремонтом! Торг","Новый термодом возле живописного озера (Урловская 36А), авторский ремонт, функциональная планировка (3 большие комнаты по 18 кв.м., кухня 12 кв.м., 2 санузла, утепленный балкон с барной стойкой 6 кв.м., гардеробная 2 кв.м.), полностью укомплектована стильной мебелью и современной техникой, подогрев полов Nexans, кондиционеры Art Cool, авторское освещение, натяжные потолки, встроенная кухня с 3D фасадами и фурнитурой Blum, 3 Smart TV, Wi-Fi. \nБронедверь. Видеодомофон. \nРазвитая инфраструктура: супермаркеты, школы, детсады. \nВся мебель и техника остаются покупателю. \nБыстрое освобождение. 1 владелец. \nТорг с покупателем. \n155000 дол.                                    ",{"$error":"#VALUE!"}," 36А), ав"]
[null,null,null,null,null,null,null,null,null,null,"Вернадского","сайт Aviso","Аренда 1-к квартиры. Ст.м. Академгородок, Комфортабельная однокомнатная квартира на бульваре Академика Вернадского с высококачественным ремонтом, удачной планировкой, мебелью и техникой. Встроенная кухня. Душ-кабина. Парковка во дворе. Ст. метро «Академгородок» — 5 минут . 6000 грн/мес.",{"$error":"#VALUE!"}," с высоко"]
[null,null,null,null,null,null,null,null,null,null,"ЖК Патриотика","Видовая (рядом метро) 1-к квартира ЖК Патриотика Дубровица","Продам  свою  1-к квартиру рядом м. Позняки 7 мин пешком.  \nЖК Патриотика дом Дубровица. \nНовостройка, окна на восток, панорамный вид. \nОчень развитая инфраструктура \nРядом Эпицентр, METRO, Novus, Aladdin, Billa, школы, садики,  \nнедавно в пешей доступности возобновилось строительство ТРЦ KyivMall (Формат: супер-региональный торгово-развлекательный центр (ICSC)) \nhttps://www.youtube.com/watch?v=HOfNrFP25Ts \nОзеро Небреж 15 мин пешком \nhttps://www.youtube.com/watch?v=UWST8srL4V8 \nВоздушное видео ЖК Патриотики с квадрокоптера \nhttps://www.youtube.com/watch?v=rC5yE6YaNnI \nКвартира сдается с отделкой от застройщика (тепловые счетчики, счетчики воды, обои, межкомнатные двери, линолеум, плинтуса, розетки, выключатели, ванна, унитаз, умывальник, двухкамерные стеклопакеты Rehau, остекление балкона от пола до потолка однокамерными стеклопакетами Rehau). Утепление дома по системе навесного вентилированного фасада. \nНа 03 февраля построен 21 этаж из 25. \nНа 19 марта строится 25-й этаж. \nСтроит надежный застройщик Аркада Банк \nСдача дома в эксплуатацию - март 2017 \nФото со стройки - 10 марта 2016  \nМного простора перед окнами \nВечерние огни в полусумерках будут выглядеть эффектно. \nРядом м. Осокорки, Позняки \nПереуступка \n$27 000                                    "," Дубровиц"," дом Дубр"]
[null,null,null,null,null,null,null,null,null,null,null,"сайт Aviso","Сдам 2 к, с ремонтом, пр-т 40 лет Октября, м.Васильковская, ВДНХ, м.Васильковская, Выставочный центр, 40летия Октября просп.,114, Голосеево, 2 комн.квартира, комнаты смежные, 45 кв.м, 5/9 эт., отличный косметич.ремонт, теплая, уютная, укомплектована всей мебелью, мягкий уголок, новый диван, кресла, телевизор, двухкамерный холодильник, стиральная машина автомат, санузел раздельный в плитке, балкон застеклен, бр.дверь. Интернет, телефон, кабельное телевиденье. Рядом школа, детсад. Прекрасная транспортная развязка. . Рядом Голосеевский парк, супермаркеты, ВДНХ. ст.м.Васильковская 10 минут. Без детей, без животных.","сайт Avis","Сдам 2 к,"]
[null,null,null,null,null,null,null,null,null,null,null,"Сдам комнату","светлая комната меблированная без балкона с кондиционером.5мин.ходьбы до метро.Черниговская.                                    ","Сдам комн","светлая к"]
[null,null,null,null,null,null,null,null,null,null,"Тимошенко","Сдам комнату в 5-к. кв-ре для одной женщины. Отличные условия, аура","На Оболони, рядом метро, сквер, озеро. Ул. Маршала Тимошенко, 2Л.  \nОтличные бытовые условия, комната 16 м., можно пользоваться всей квартирой: кабинет, столовая, тренажеры, интернет, спутник и пр. \nПроживает один мужчина 60 лет (совершенно адекватен, работает, без сексуальных претензий). Коммунальные входят в стоимость.                                    ",{"$error":"#VALUE!"},", 2Л.  \nО"]
[null,null,null,null,null,null,null,null,null,null,"Парковый","Продам 3-х комнатную квартиру 134 кв.м.,жилая78кв.м.","Продам 3-х комнатную квартиру в Святощинском р-не, Кольцова бул. 14-е, 134/78/56 , элитный новый дом. Рядом школы, рынок «Днепро», ТЦ «Квадрат», ТЦ «Сельпо», кинотеатр, хорошая транспортная развязка. Квартира в жилом состоянии, частично с мебелью, есть телефон, интернет, спутниковое телевидение «Viasat».Дом построенный в 2008 году по монолитно-каркасной технологии. Постройка является частью проекта жилого комплекса «Парковый». Единственный вход в парадное круглосуточно контролируется консьержем. Стальные, входные двери оснащены домофонами. Здание имеет запланированную инфраструктуру. Так на первых этажах есть: мастерская по ремонту обуви, салон красоты, парикмахерская, и кафе. Возле дома находятся, как площадка для парковки автомобилей, так и подземный паркинг. Жилой комплекс обладает хорошо развитой инфраструктурой. На его территории расположено множество магазинов и два торговых центра. Кроме прочего рядом находится парк «Юность», в котором наряду с детскими площадками находится православный храм.Реальному покупателю - торг. \n1.Холл 20 м? \n2.Кухня 17.60 м? \n3.Гостиная 36.70 м? \n4.Жилая комната 21.40 м? \n5.Жилая комната 19.70 м? \n6.Гардероб 3.40 м? \n7.Ванная 7.60 м? \n8.СУ 3.80 м? \n9.Балкон 1.6 м? \n10.Балкон 2.4 м?                                    ",{"$error":"#VALUE!"},"». Единст"]
[null,null,null,null,null,null,null,null,null,null,"Русановский","Продам видовую квартиру, Днепровский район.","Продаю 4-х комнатную квартиру в Киеве, ул. М. Расковой.  \nДом - 23 этажа, кирпичный, утеплённый, 3 лифта, консьерж. Шикарный вид из окон.  \nБольшая придомовая территория с детской площадкой, Русановский канал. Рядом с домом - большая охраняемая стоянка для машин.  \nОбщая площадь - 133 кв.м., жилая - 82 кв.м., 2 застеклённых балкона.  \n2 санузла с итальянской сантехникой, кухня со встроенной бытовой техникой (Bosch) и системой фильтрации воды.  \nИтальянская мебель и светильники, встроенные шкафы,  спортивные тренажёры (Kettler, Torneo).  \nВидеодомофон, интернет, спутниковое телевидение. Евроремонт с использованием ТОЛЬКО европейских материалов, отделка натуральным мрамором, пол - немецкая паркетная доска. Кондиционеры.                                    ",{"$f":"MID(L15,((FIND(K15,L15,1))+LEN(K15)),9)","v":{"$error":"#VALUE!"}},{"$f":"MID(M15,((FIND(K15,M15,1))+LEN(K15)),9)","v":" канал. Р"}]
[null,null,null,null,null,null,null,null,null,null,null,"2-х комнатная квартира","Продаём 2-х комнатную квартиру.  Санузел раздельный, есть ванна и душевая. Узаконенная перепланировка. По всем вопросам пишите. 65000$                                    ","2-х комна","Продаём 2"]
[null,null,null,null,null,null,null,null,null,null,"Крещатик","сайт Aviso","Подол, 2 мин. от метро, большая однокомнатная, Просторная однокомнатная квартира (41/19/9)на втором этаже в катеджном доме возле метро Т.Шевченко. Есть вся необходимая мебель, стиральная машина, холодильник, пылесос, интернет. Окна во двор. Напротив дома «Сельпо». Пешком 10 мин.Житний рынок, до Крещатика 3 остановки на метро. Фото соответствуют. Цена 5600 грн. + ком. торг",{"$error":"#VALUE!"},"а 3 остан"]
[null,null,null,null,null,null,null,null,null,null,null,"Продам квартиру срочно. Святошенский раен. Борщяговка","В хорошом состоянии! Все вопросы по тел.  991    звоните с 8:00 до 23:00                                    ","Продам кв","В хорошом"]
[null,null,null,null,null,null,null,null,null,null,"Шумского","Продам 1 комнатную квартиру Киев Днепровский р-н Шумского Юрия 5","1-комнатная квартира, 43/20/12,(туал.4,5 м2), этаж 2/27 в новострое бизнес-класса по ул. Юрия Шумского, 5Ж/К\"БАРВИНОК\" на берегу озера Тельбин. Дом утепленный мин.ватой, современная планировка квартиры; кирпичные стены и перегородки; внутренняя отделка - после строителей.Дом расположен в экологически чистом, тихом и спокойном районе г.Киева, не загруженном трафиком. Удобная транспортная развязка: Дарницкий мост и мост Патона,ст.м Левобережная и ст.м Осокорки - 10 мин., на машине 5 мин. и центр г.Киева(Печерск)Через дорогу от дома школа и садик; рядышком парковая зона и спорт комплекс, о. Тельбин с красивым пляжем.Гипермаркет \"Там-Там\",800 м - Днепровская набережная.Дом сдан в эксплуатацию.Квартира с документами, право собственности.Владелец."," Юрия 5",", 5Ж/К\"БА"]
[null,null,null,null,null,null,null,null,null,null,"Чавдар","2-х ком,ул.Чавдар 13, 17-й этаж, 80/41/15 кв.м. р-н Дарницкий","Элитный высоко комфортабельный спецпроект, с собственным бассейном, спортзалами, зимним садом, многоуровневым паркингом. 17/25-эт., площадь 80/41/15 м2,  металлопластиковые окна, евро радиаторы, стяжка, штукатурка, счетчики воды, счётчик тепла,эл.разводка,щиток с атоматами,свет, лоджия застеклённая из кухни, два санузла, вид на озёра. 3-я секция,квартира подготовлена к ремонту,есть сантехника.Метро Осокорки 6мин.хода.Последние снимки  - такая же квартира после ремонта.                                    "," 13, 17-й",{"$error":"#VALUE!"}]
[null,null,null,null,null,null,null,null,null,null,null,"Сдаю 1-ую квартиру","Сдается квартира (гостинка). Санузел совмещенный, счетчики на холодную и горячую воду. Балкон застеклен, стеклопакеты. В квартире есть диван, стенка, холодильник. До станций метро (Академгородок, Житомирская) идти 10 минут. Оплата коммунальных услуг за счет квартиросъемщика. Стиральной машинки и телевизора нет. Посредникам не беспокоить.                                    ","Сдаю 1-ую","Сдается к"]
[null,null,null,null,null,null,null,null,null,null,null,"Хозяйка продаст квартиру-студию 57 кв.м. Новострой. Евроремонт. Чабаны","Продам квартиру с евроремонтом в новом доме 2011 г. в ближайшем пригороде Киева смт Чабаны. Квартира полностью укомплектована мебелью и техникой, все оставляем, состояние \"заходи и живи\". Отличная планировка: кухня-студия 30 кв.м, спальня, большой холл, с/у раздельный. Тамбур на 2 квартиры. Дом уже обжит, все ремонты сделаны, тихий двор, рядом озеро, парк, Фора. До м.Теремки 5 минут езды. Продает хозяйка. Все фото соответствуют. Без посредников и без комиссии!                                    ","Хозяйка п","Продам кв"]
[null,null,null,null,null,null,null,null,null,null,null,"Отличная квартира в ЖК Чайка, вид на Киев, собственник","Лучшая квартира в своем классе. ЖК Чайка. 15-й этаж из 15 + тех.этаж. Вид на Киев. Возможность выкупить тех.этаж. Документы готовы. \nПросторная квартира, большой холл, комнаты большие. Планировка на фото. \nУникальный вид из всех окон. Панорамный вид от Ворзеля до Теремков. \nУтром восход солнца над Киевом. \nВечером - Киев в багровых тонах. \nРядом лес. Лесная колыба и мангал. Комаров, мошкары в квартире и на балконе никогда не бывает! Рядом дома такой же этажностью или 12 этажей.                                    ","Отличная ","Лучшая кв"]
[null,null,null,null,null,null,null,null,null,null,"Отрадный","3-х ком. с ремонтом в новом доме на 9 квартир, Патриотов 74.","Продается квартира в новом клубном доме на 3 этаже, с ремонтом.  Скоростной Интернет, сигнализация. Дом сдан, оформлено право собственности на квартиру. Рядом большой парк \"Отрадный\". Дом построен из четырех видов облицовочного кирпича, утеплен мин ватой. Перекрытия ж/б плиты. Окна Rehau 70, с энергосберегающими стеклоп-ми. Красивое парадное. В доме лифт. В квартире газовый котел- что позволит экономить на тарифе и на количестве потребления газа. Котел будет греть и горячую воду. В квартире все готово: поклеены дорогие обои, положен паркет в комнатах и плитка в коридоре, кухне и санузле, везде есть люстры, межкомнатные деревянные двери готовы. Для каждой квартиры своя парковка для 1-2 машин (для 8 квартир около 12-14 паркомест). Свой дворик. БЕЗ КОМИСИИ                                    ",{"$error":"#VALUE!"},"\". Дом по"]
[null,null,null,null,null,null,null,null,null,null,"Драйзера","1- к.квартира","1 - комн.квартира по ул.Драйзера 11а,этаж 2,есть большой коридорчик на 4 квартиры, который закрывается на ключ.Дом панельный, всего 9 этажей в доме. В квартире поменяли батареи, сделан косметический ремонт. В ванной комнате кафель;на кухне кафель на полу.Новая входная дверь,сменили двери в ванной и туалет.На балконе деревянная вагонка .                                    ",{"$error":"#VALUE!"}," 11а,этаж"]
[null,null,null,null,null,null,null,null,null,null,"Волгоградская","Продаю 2 комнатную квартиру по ул. Волгоградская 9.","Продаю 2 комнатную квартиру по ул. Волгоградская 9. Квартира ухоженная уютная не торцевая, комнаты раздельные. Санузел раздельный плитка, в комнатах паркет. Общая пл. 43,80. Жилая 28,90. Кухня 6,50.Комнаты 14,00 и 14,90. Балкон застеклен. Пластиковые окна, большие по всей квартире.Хорошая надежная входная дверь.Замки моноблок. Рядом парк, тихое место, рынок хорошая транспортная развязка. Конечные остановки транспорта. Реальному покупателю возможен  торг. Срочно!                                    "," 9."," 9. Кварт"]
[null,null,null,null,null,null,null,null,null,null,"Сикорского","Квартира 3-х комнатная в новостройке","\"Зеленый остров 2\"!Продается квартира в живописном и элитном районе Киева, по улице Сикорского 4. секция 2. уютное, тихое, красивое место с хорошей транспортной развязкой... лучшая планировка квартиры в данной секции... Дома от \"зеленого острова\" самая надежная недвижимость. Эта квартира Ваш шанс стать счастливым!                                    ",{"$error":"#VALUE!"}," 4. секци"]
[null,null,null,null,null,null,null,null,null,null,"Милютенко","ХОЗЯИН Продам или обменяю однокомнатную квартиру, ул. Милютенко","Продам квартиру на ул. Милютенко. 33/19/6. Балкон застеклен, обшит деревом. Счетчики на газ/воду. Светлая уютная квартирка, с косметическим ремонтом. Закрытый тамбур на 3 квартиры, ремонт в парадном. Вид из окна на лесок. Рядом школа, садики, маркеты, кинотеатр. До метро 15 минут. Цена 32000$ с торгом до 30000 под вопросом. \nИли ОБМЕН с нашей доплатой на двухкомнатную. Только КИЕВ!                                    ","",". 33/19/6"]
[null,null,null,null,null,null,null,null,null,null,"Ахматовой","1-комнатная Ахматовой","1-комнатная Ул.Ахматовой 15 собственник больше 3-х лет ,ремонту 5 лет,Встроенная мебель                                    ",""," 15 собст"]
[null,null,null,null,null,null,null,null,null,null,null,"Комфортна 2к квартира від забудовника в новому ЖК.","Продається простора 2 к квартира. \nпростора з первинним ремонтом стяжка, штукатурка з відкосами, розводка електрики, залізні радіатори, двохкамерні склопакети, лічильники, двохконтурний газовий котел. \nВ ЖК розвинута своя інфраструктура дитячий садок , фітнес клуб, салон краси, ресторан-піцерія, кафе, супермаркет  продуктовий, магазин строй матеріалів, свій ЖЕК,маршрутна зупинка. \nВід нас ходять маршрутки до м.Академмістечка,Нивки, Святошин , Житомирська. \nБудемо раді з вами зустрітмсь чекаємо ваших дзвіночків.                                    ","Комфортна","Продаєтьс"]
[null,null,null,null,null,null,null,null,null,null,"Воздухофлотский","Продам квартиру","2-х комнатная квартира Воздухофлотский пр. 74,  квартира бабушки, требуется ремонт, новая газ. колонка, газ. плита, Недалеко нов. терминал Аэропорт \"Жуляны\". Недалеко парк, Фуршет, Мак Дональдс через остановку. Очень уютный ,тихий, зеленый дворик. Есть палисадник с фрукт деревьями. Торг возможен! Звоните!                                    ",{"$error":"#VALUE!"}," пр. 74, "]
[null,null,null,null,null,null,null,null,null,null,"Фучика","Сдам комнату","Сдам комнату в 3-х комнатной квартире по ул.Фучика, на длительный срок. \nПосле ремонта. \nОплата за первый и последний месяцы. \nКоммунальные услуги оплачиваются дополнительно. \nИмеется стиральная машинка,микроволновая печь и все удобства. Интернет. \nУдобная транспортная развязка. \nПредпочтение одному человеку. \nПодробности по телефону  Евгений \nРассмотрю разные варианты.                                    ",{"$error":"#VALUE!"},", на длит"]
[null,null,null,null,null,null,null,null,null,null,"Здолбуновская","Продам 2-комнатную квартиру ул. Здолбуновская, 5-А","2-комнатная квартира ул. Здолбуновская, 5-А (не торцевая). Ремонт, две большие застекленные лоджии, комнаты раздельные, санузел раздельный. Окна выходят на бювет. \nМагазины - Сильпо, АТБ, Новус. Школа, детский сад, библиотека, сбербанк, почтовое отделение, поликлиника, зона отдыха, озеро. До метро Позняки 10 мин. (Хозяин)                                    ",", 5-А",", 5-А (не"]
[null,null,null,null,null,null,null,null,null,null,null,"Продам 1-но комнатную квартиру в киеве","Продам 1-но комнатную квартиру в городе Киев, в дарницком районе.Дом здан в эксплуатацию в декабре 2015 года. Дом построен в виде свечи. Реальному покупателю хороший торг.                                    ","Продам 1-","Продам 1-"]
[null,null,null,null,null,null,null,null,null,null,"Новоукраинская","сайт Aviso","Сдам долгосрочно 1-к квартиру Киев, Шевченковский, Площадь 27/14/5 кв.м., Новоукраинская, 1/3, Новоукраинская 1/3 Сдача светлойоднокомнатной квартиры не далеко от метро Сырец на длительный срок! Квартира укомплектована всей необходимой мебелью и техникой для комфортной жизни.Стиральная машина, холодильник, микроволновая печь, шкаф купе,двухспальный диван,плазма.Фото соответствует действительности. Цена 4000тыс.грн комунальные. 0953374001",{"$error":"#VALUE!"},", 1/3, Но"]
[null,null,null,null,null,null,null,null,null,null,"Перова","Продажа 2 комнатной квартиры (45/30/8), 4 эт. 5 эт-го дома, Киев","2-х комнатная. Хозяин. Продам. б.Перова 4 Днепровский р-н. \nПродам 2-х комнатную.Своя. б.Перова 4 Днепровский р-н. Комнаты смежные, паркет, кафель, с/у раздельный, балкон застеклен, бронедверь, домофон. Двухсторонняя. Не торцевая. Двор большой, ухоженный, садик и школа недалеко от дома, отличная транспортная развязка, к метро Дарница и Левобережная - 5 минут транспортом. До метро пешком- 14мин. Развитая инфраструктура. Супермаркет Novus-150м. Рядом парк, озеро. Документы готовы. Владелец",{"$error":"#VALUE!"}," 4 Днепро"]
[null,null,null,null,null,null,null,null,null,null,null,"ОЧЕНЬ СРОЧНО продаю 3-к квартиру","Очень срочно продаю 3к квартиру в новом жилом комплексе. Площадь 67м2, есть гардероб. Саузел роздельный. Планировка во вложении, но по факту она больше. Квартира в отличном состоянии. ПРОДАЖА СРОЧНАЯ! ВОЗМОЖЕН ТОРГ!!! ДОМ новый.                                    ","ОЧЕНЬ СРО","Очень сро"]
[null,null,null,null,null,null,null,null,null,null,"Хвылевого","Шикарная квартира возле парка м.Красный хутор Дарницкий р-н Хвылевого","Маленький центр Нью-Йорка в Киеве! \nШикарная видовая квартира в новострое, расположенная в пешей досягаемости от метро Красный хутор по ул. Хвылевого, 1.  Сразу возле дома сосновый лес, Парк партизанской славы, тропа здоровья. Во дворе детская площадка, стоянка на 70 машиномест.  В самой близости 2 садика и 1 школа. \nДом построен из экологически чистого природного материала - альминский камень, который прекрасно сохраняет тепло. \nКвартира разделена на детскую, гостевую зону, хозяйскую и кабинет, таким образом получается 4 комнаты! \nЕсть отдельная вместительная гардеробная, которую можно использовать для хранения детской коляски или велосипеда, который вы первым делом приобретёте, переехав жить в это живописное место! \nКладовка на этаже. \n!!!Стоят СЧЁТЧИКИ УЧЁТА ТЕПЛА!!!  \nВстроенная мебель, кухня (фурнитура  Blum),  чешская сантехника (Imprese). В стоимость входит мебель и встроенная техника (два кондиционера, бойлер на 80л, стир. машина, посудомойная машина, варочная поверхность, духовой  шкаф, мощная вытяжка)!  \nВидеонаблюдение при входе в квартиру с выходом на камеру на 1 этаж; видео воспроизводится на любое устройство с возможностью выхода в интернет (ноутбук, смартфон). \nКвартира большая, светлая, просторная, заходи и живи! \nКвартира пропитана теплом и любовью, здесь можно принимать гостей, заводить семью и рожать детей! :) \n11/14 эт. дома, общая площадь 95,1 кв.м., жилая – 37,8 , 1 комната – 22,3, 2 комната – 15,5, кухня – 17,6, лоджия – 11,0, с/у №1 – 5,9, с/у №2 – 2,9, коридор – 19,9.                                    ","",", 1.  Сра"]
[null,null,null,null,null,null,null,null,null,null,null,"ТАУНХАУС Коттедж с евроремонтом 215м2 +гараж 1км Одесской Трассы","Срочно , Новая квартира в Таунхаусе с Евроремонтом S-215м2., в три уровня, с двориком и своим авто-гаражем. В коттеджном районе 1км Одесской трассы, Киев. \n1 эт. Хол, кухня-гостинная (студия), с выходом на террасу, с/у, котельная/прачечная, выход в гараж. Лестница -натур.красное дерево. \n2 эт. Хол, 3 раздельных комнаты с балконами, с/у. \n3 эт. площадью 55м2,  свободной планировки Мансардный этаж, (окна в крыше). \nАвтономное отопление, сигнализация, видео охрана, своя скважина, оптоволоконный интернет,  свой трансформатор свет 380В.  \nВсе счетчики. Рядом новый супермаркет АТБ, (1км., Одесской трассы), Асфальтированный подьезд, рядом  \nм. Теремки (10мин.), школы, садик. \nЦена ДОГОВОРНАЯ (Торг уместен) - ХОЗЯИН. Звоните в любое время, отвечу на все вопросы. \nНа OLX мало место для фото, Больше и в лучшем качестве могу скинуть по почте!                                    ","ТАУНХАУС ","Срочно , "]
[null,null,null,null,null,null,null,null,null,null,"Радужная","Продам 1-к квартиру Радужный массив без посредников","Радужный массив, Радужная ул., 3б, 1/9-эт. дома, 34/17/8 кв. м, качественный ремонт, замена всех коммуникаций, новые трубы, проводка. Полы ламинат, кухня встроенная, встроенные шкафы - купе. Рядом озеро,  детские садики, школы, супермаркет. Хорошая транспортная развязка. Квартира от хозяина. Без посредников.                                    ",{"$error":"#VALUE!"}," ул., 3б,"]
[null,null,null,null,null,null,null,null,null,null,null,"Продам 2 к квартиру","Продаю квартиру в Киеве. 5 мин от метро Сирец, рядом \"Сирецкий гай\" тихое спокойное место. \nт.  979                                      ","Продам 2 ","Продаю кв"]
[null,null,null,null,null,null,null,null,null,null,"Метрологическая","Продам 1-ю квартиру, ул. Метрологическая, ЖК\"Кришталеві джерела\"","ЖК«Кришталеві джерела» - лауреат общенациональной программы «Человек года-2015» в номинации «Жилой комплекс года». \nДом №5, находится во дворе закрытого комплекса. Центральный подъезд, 7 этаж, выбиралась для себя, на этапе фундамента. Рядом лучший в Киеве парк - \"Феофания\".  \nДом введен в эксплуатацию, квартира с чистой отделкой, под ремонт. По переуступке. (Дому присвоен адрес-ул.Метрологическая, 11В, поданы документы в госрегистрационную службу. \nВозможен обмен на 2-х или 3-х комнатную в этом комплексе с доплатой.                                    ",", ЖК\"Криш",", 11В, по"]
[null,null,null,null,null,null,null,null,null,null,null,"Продам 2-х. комн. квартиру ЖК","Продам 2-х. ком. квартиру общ. пл. 77,4 м. в элитном жилом комплексе «Чайка» с ремонтом и мебелью (встроенная кухня, гардеробная) бойлер, электро подогрев пола на кухне и ванной. Ремонт делали для себя. Кухня-студия 25,2м. Коридор 15,3 м. 2 сан.узла. 5 мин. езды от метро «Житомирская». На территории собственный ЖЕК, охрана, детский сад, теннисный корт, футбольное поле, детские площадки. 71 000 $ торг уместен.                                    ","Продам 2-","Продам 2-"]
[null,null,null,null,null,null,null,null,null,null,null,"Продаю двух-комнатную квартиру.","Продам 2х.комн.,разд.,43м.кв.,5/5кирпичный,с/у разд.,балкон заст.,тел.,кухня 7м.кв., \nБронедверь,тёплая,сухая,тихое место,интернет,счётчики воды,метро Лукьяновская,Контрактова пл. рядом,хорошая транспортная развязка.Цена-90 000 $.                                    ","Продаю дв","Продам 2х"]
[null,null,null,null,null,null,null,null,null,null,null,"Продам 1-ю квартиру","БЕЗ ПОСЕРЕДНИКІВ! \n1-но кiмнатна кв-ра перепланована в 2-ну. \nЖК Брест-Литовський 2010року забудова. \n6/16,євроремонт ,вбудована кухня, з вбудованою технікою з використанням якісних матеріалів,  \nшафи-купе, бойлери у ванні та на кухні, підлога з підігрівом у ванні, балкон утеплений та засклений. \nЛічильники води,кабельне ТВ,інтернет,домофон.  \nТеплий красивий будинок оточений лісом. \nАвтономене опалення, ідеально чисте парадне, великий закритий внутрішній двір з дитячим майданчиком. \nСвоя котельна, підземний  i надземний паркінг. \nВся інфраструктура,магазини. \nПрямі маршрутки та автобус до ст.м. Житомирська 15 хв.                                    ","Продам 1-","БЕЗ ПОСЕР"]
[null,null,null,null,null,null,null,null,null,null,null,"Сдам 2комнаты в частном доме, Голосеевский р-н","Сдам 2 смежные комнаты в частном доме для женщин или семейной пары без вредных привычек. Есть необходимая мебель, телевизор, интернет, все удобства в доме. 3000 + коммунальные услуги \nДо метро Васильковская 7минут пешком                                    ","Сдам 2ком","Сдам 2 см"]
[null,null,null,null,null,null,null,null,null,null,"Киквидзе","Печерск 2-х ком. Киквидзе 20","Чистый подъезд, 5 этаж, пятиэтажного дома. Бронедверь, две смежные комнаты, балкон, туалет и ванна раздельные. Продается с мебелью, есть телевизор, холодильник, стиральная машина.  \nСостояние на фото - https://goo.gl/photos/wCBfSVVqk1nuSExV8 \n51000$, от владельца, без комиссии, торг возможен.                                    "," 20",{"$error":"#VALUE!"}]
[null,null,null,null,null,null,null,null,null,null,"Бестужева","Однокомнатная квартира ул. Бестужева 34. БЕЗ ПОСРЕДНИКОВ!","Площадь 42,8/22/10. Квартира в отличном состоянии, качественный ремонт, мебель, встроенная кухня и бытовая техника, кондиционер, бойлер. Итальянская сантехника. Балкон застекленный, утепленный можно использывать как кабинет, окна выходят во двор. Кладовая комната-гардероб. До м. Минская 10-15 мин., до пл. Т. Шевченка 5 мин пешком. Транспортная развязка до м. Минская, Петровка, Лукьяновская, Нивки. Рядом отличный рынок, парк, озера, лес. Очень теплый и качественный дом 2009 года. Придомовая територия ограждена с парковкой личного транспорта.                                    "," 34. БЕЗ ",{"$error":"#VALUE!"}]
[null,null,null,null,null,null,null,null,null,null,null,"Сдается комната в двухкомнатной квартире без хозяина.","Сдается комната в  двухкомнатной квартире без хозяина в Печерском районе рядом с метро \"Печерская\" с 8 апреля. Стоимость 3000 + коммунальные                                    ","Сдается к","Сдается к"]